fUST/lending_fUST_20240324
["ID","MTS","AMOUNT","RATE_DAILY","PERIOD"]
[320287295,1711239032659,-268.3968758,0.00022935,2]
[320287296,1711239032668,-0.77138626,0.00023017,2]
[320287297,1711239032679,-340.68784594,0.00023017,2]
[320287298,1711239032688,-187.3591105,0.00023685,2]
[320287299,1711239032697,-156.0338675,0.00023758,2]
[320287300,1711239032706,-14764.8058419,0.00023785,2]
[320287301,1711239032715,-620.32486276,0.00023858,2]
[320287302,1711239032724,-48089.47281934,0.000245,7]
[320287303,1711239032733,-1644.02843938,0.000245,2]
[320287304,1711239032745,-325.57710366,0.00024507,2]
[320287305,1711239032754,-1644.02843935,0.00024514,2]
[320287307,1711239032763,-162.056878,0.00024529,2]
[320287308,1711239032775,-1481.97156135,0.00024529,2]
[320287310,1711239032787,-1644.02843935,0.00024543,2]
[320287312,1711239032796,-443.69618542,0.00024544,2]
[320287314,1711239032805,-14931.09172188,0.00024557,2]
[320287316,1711239032816,-1644.02843935,0.00024557,2]
[320287318,1711239032825,-400.0,0.000246,2]
[320287320,1711239032834,-207.44269473,0.00024621,2]
[320287322,1711239032843,-183.12439247,0.00024653,2]
[320287324,1711239032853,-1571.32607788,0.00024654,2]
[320287326,1711239032863,-156.60735728,0.00024655,2]
[320287328,1711239032872,-6227.36234729,0.00024655,2]
[320287330,1711239032885,-2007.6845252,0.00024655,2]
[320287332,1711239032895,-989.69903407,0.00024655,2]
[320287411,1711239038555,-774.65895211,0.00024655,2]
[320287412,1711239038564,-184.83568351,0.00024655,2]
[320287413,1711239038573,-469.01459061,0.00024655,2]
[320287414,1711239038582,-1310.58315587,0.00024655,2]
[320287415,1711239038591,-218.85106251,0.00024655,2]
[320287416,1711239038601,-354.3803345,0.00024655,2]
[320287417,1711239038610,-155.07132863,0.00024655,2]
[320287419,1711239038619,-358.95943651,0.00024655,2]
[320287420,1711239038628,-518.08717483,0.00024655,2]
[320287422,1711239038637,-612.60960396,0.00024656,2]
[320287424,1711239038646,-180.06260683,0.00024656,2]
[320287426,1711239038655,-191.52886619,0.00024656,2]
[320287427,1711239038664,-286.51108662,0.00024656,2]
[320287428,1711239038673,-283.26158139,0.00024656,2]
[320287429,1711239038683,-500.0,0.00024656,2]
[320287430,1711239038692,-553.40200337,0.00024656,2]
[320287431,1711239038701,-500.0,0.00024656,2]
[320287432,1711239038710,-500.0,0.00024656,2]
[320287433,1711239038719,-500.0,0.00024656,2]
[320287434,1711239038727,-500.0,0.00024656,2]
[320287435,1711239038738,-500.0,0.00024656,2]
[320287436,1711239038747,-500.0,0.00024656,2]
[320287437,1711239038756,-579.76,0.00024656,2]
[320287438,1711239038765,-160.0,0.00024656,2]
[320287439,1711239038774,-464.13063294,0.00024657,2]
[320287440,1711239038783,-1077.56,0.00024657,2]
[320287441,1711239038794,-500.0,0.00024657,2]
[320287442,1711239038806,-501.11927951,0.00024657,2]
[320287443,1711239038815,-405.11944443,0.00024657,2]
[320287444,1711239038824,-500.0,0.00024657,2]
[320287445,1711239038833,-500.0,0.00024657,2]
[320287446,1711239038843,-500.96133092,0.00024657,2]
[320287447,1711239038852,-500.0,0.00024657,2]
[320287448,1711239038862,-500.0,0.00024657,2]
[320287449,1711239038871,-500.0,0.00024657,2]
[320287450,1711239038880,-500.0,0.00024657,30]
[320287451,1711239038890,-500.0,0.00024657,2]
[320287452,1711239038898,-14.78720654,0.00024657,2]
[320287453,1711239038917,-385.11,0.00024657,2]
[320287469,1711239041550,-100.10279346,0.00024657,2]
[320287470,1711239041560,-500.0,0.00024657,2]
[320287471,1711239041570,-500.0,0.00024657,2]
[320287472,1711239041579,-500.0,0.00024657,2]
[320287473,1711239041589,-501.16336604,0.00024657,2]
[320287474,1711239041598,-500.0,0.00024657,2]
[320287475,1711239041607,-151.0,0.00024657,2]
[320287476,1711239041617,-503.55441134,0.00024657,2]
[320287477,1711239041626,-500.89845151,0.00024657,2]
[320287478,1711239041635,-421.44642884,0.00024657,2]
[320287479,1711239041645,-514.17098391,0.00024657,2]
[320287480,1711239041654,-500.0,0.00024657,2]
[320287481,1711239041663,-500.0,0.00024657,2]
[320287482,1711239041672,-500.0,0.00024657,2]
[320287483,1711239041682,-500.0,0.00024657,2]
[320287484,1711239041691,-503.13274719,0.00024657,2]
[320287485,1711239041701,-225.36791295,0.00024657,2]
[320287486,1711239041710,-315.57094913,0.00024657,2]
[320287487,1711239041720,-500.43253084,0.00024657,2]
[320287488,1711239041729,-503.6084335,0.00024657,2]
[320287489,1711239041742,-501.00923845,0.00024657,2]
[320287490,1711239041752,-430.08666836,0.00024657,2]
[320287491,1711239041761,-500.21335483,0.00024657,2]
[320287492,1711239041770,-500.0,0.00024657,2]
[320287493,1711239041780,-500.0,0.00024657,2]
[320287494,1711239041789,-500.0,0.00024657,2]
[320287495,1711239041798,-500.0,0.00024657,2]
[320287496,1711239041808,-500.0,0.00024657,2]
[320287497,1711239041821,-500.0,0.00024657,2]
[320287498,1711239041831,-500.0,0.00024657,2]
[320287499,1711239041841,-500.0,0.00024657,2]
[320287500,1711239041850,-500.92691305,0.00024657,2]
[320287501,1711239041859,-500.21366103,0.00024657,2]
[320287502,1711239041869,-228.52709351,0.00024657,2]
[320287503,1711239041878,-170.73961261,0.00024657,2]
[320287504,1711239041887,-500.0,0.00024657,2]
[320287505,1711239041896,-500.0,0.00024657,2]
[320287506,1711239041907,-500.0,0.00024657,2]
[320287507,1711239041916,-500.0,0.00024657,2]
[320287508,1711239041926,-500.0,0.00024657,2]
[320287509,1711239041936,-501.5043868,0.00024657,2]
[320287510,1711239041945,-500.85878498,0.00024657,2]
[320287511,1711239041954,-263.45,0.00024657,2]
[320287512,1711239042091,-500.0,0.00024657,2]
[320287513,1711239042101,-558.45,0.00024657,2]
[320287514,1711239042111,-500.69777511,0.00024657,2]
[320287515,1711239042120,-1074.28,0.00024657,2]
[320287516,1711239042130,-500.0,0.00024657,2]
[320287517,1711239042139,-500.0,0.00024657,2]
[320287518,1711239042148,-500.0,0.00024657,2]
[320287519,1711239042158,-500.0,0.00024657,2]
[320287520,1711239042167,-731.57,0.00024657,2]
[320287521,1711239042177,-500.0,0.00024657,2]
[320287522,1711239042187,-1033.41,0.00024657,2]
[320287523,1711239042197,-594.83588972,0.00024657,2]
[320287524,1711239042206,-500.0,0.00024657,2]
[320287525,1711239042215,-500.0,0.00024657,2]
[320287526,1711239042224,-1221.42,0.00024657,2]
[320287527,1711239042234,-500.0,0.00024657,2]
[320287528,1711239042243,-500.0,0.00024657,2]
[320287529,1711239042252,-500.0,0.00024657,2]
[320287530,1711239042262,-500.0,0.00024657,2]
[320287531,1711239042271,-501.40931723,0.00024657,2]
[320287532,1711239042280,-500.0,0.00024657,2]
[320287533,1711239042289,-500.0,0.00024657,2]
[320287534,1711239042299,-500.0,0.00024657,2]
[320287535,1711239042308,-500.0,0.00024657,2]
[320287536,1711239042317,-500.0,0.00024657,2]
[320287537,1711239042326,-500.0,0.00024657,2]
[320287538,1711239042335,-502.1994075,0.00024657,2]
[320287539,1711239042344,-1222.12,0.00024657,2]
[320287540,1711239042353,-500.0,0.00024657,2]
[320287541,1711239042362,-525.88938171,0.00024657,2]
[320287542,1711239042371,-499.89168855,0.00024657,2]
[320287543,1711239042380,-500.0,0.00024657,2]
[320287544,1711239042390,-500.0,0.00024657,2]
[320287545,1711239042399,-500.0,0.00024657,2]
[320287546,1711239042409,-500.0,0.00024657,2]
[320287547,1711239042418,-500.0,0.00024657,2]
[320287548,1711239042427,-500.0,0.00024657,2]
[320287549,1711239042436,-408.24247577,0.00024657,2]
[320287550,1711239042445,-1322.34,0.00024657,2]
[320287551,1711239042454,-501.01403778,0.00024657,2]
[320287552,1711239042463,-500.0,0.00024657,2]
[320287553,1711239042472,-500.0,0.00024657,2]
[320287554,1711239042482,-500.0,0.00024657,2]
[320287555,1711239042492,-500.0,0.00024657,2]
[320287556,1711239042501,-500.0,0.00024657,2]
[320287557,1711239042512,-500.0,0.00024657,2]
[320287558,1711239042522,-500.0,0.00024657,2]
[320287559,1711239042533,-1090.33,0.00024657,2]
[320287560,1711239042544,-500.0,0.00024657,2]
[320287561,1711239042554,-500.0,0.00024657,2]
[320287562,1711239042564,-500.0,0.00024657,2]
[320287563,1711239042573,-500.0,0.00024657,2]
[320287564,1711239042582,-822.7,0.00024657,2]
[320287565,1711239042591,-500.0,0.00024657,2]
[320287566,1711239042600,-151.0,0.00024657,2]
[320287567,1711239042609,-500.0,0.00024657,2]
[320287568,1711239042618,-500.20596019,0.00024657,2]
[320287569,1711239042627,-283.97543778,0.00024657,2]
[320287570,1711239042637,-500.61092407,0.00024657,2]
[320287571,1711239042646,-500.0,0.00024657,2]
[320287572,1711239042656,-500.0,0.00024657,2]
[320287573,1711239042665,-500.0,0.00024657,2]
[320287574,1711239042675,-500.0,0.00024657,2]
[320287575,1711239042685,-500.0,0.00024657,2]
[320287576,1711239042694,-500.0,0.00024657,2]
[320287577,1711239042703,-500.0,0.00024657,2]
[320287578,1711239042712,-500.0,0.00024657,2]
[320287579,1711239042721,-500.0,0.00024657,2]
[320287580,1711239042730,-500.0,0.00024657,2]
[320287581,1711239042741,-151.0,0.00024657,2]
[320287582,1711239042753,-208.311288,0.00024657,2]
[320287583,1711239042763,-1647.78,0.00024657,2]
[320287584,1711239042772,-500.0,0.00024657,2]
[320287585,1711239042782,-500.3282132,0.00024657,2]
[320287586,1711239042792,-500.0,0.00024657,2]
[320287587,1711239042802,-500.0,0.00024657,2]
[320287588,1711239042811,-500.0,0.00024657,2]
[320287589,1711239042820,-151.0,0.00024657,2]
[320287590,1711239042829,-151.0,0.00024657,2]
[320287591,1711239042839,-151.0,0.00024657,2]
[320287592,1711239042848,-151.0,0.00024657,2]
[320287593,1711239042857,-151.0,0.00024657,2]
[320287594,1711239042866,-151.0,0.00024657,2]
[320287595,1711239042874,-151.0,0.00024657,2]
[320287596,1711239042884,-151.0,0.00024657,2]
[320287597,1711239042892,-159.401906,0.00024657,2]
[320287598,1711239042901,-890.77,0.00024657,2]
[320287599,1711239042910,-349.83757506,0.00024657,2]
[320287602,1711239042925,-150.16242494,0.00024657,2]
[320287603,1711239042934,-122.53757506,0.00024657,2]
[320287604,1711239042946,-28.46242494,0.00024657,2]
[320287605,1711239042956,-151.0,0.00024657,2]
[320287606,1711239042965,-160.767638,0.00024657,2]
[320287607,1711239042975,-500.0,0.00024657,2]
[320287608,1711239042984,-517.07,0.00024657,2]
[320287609,1711239042993,-500.0,0.00024657,2]
[320287610,1711239043002,-500.0,0.00024657,2]
[320287611,1711239043011,-500.0,0.00024657,2]
[320287613,1711239043021,-500.0,0.00024657,2]
[320287614,1711239043030,-500.0,0.00024657,2]
[320287616,1711239043039,-500.0,0.00024657,2]
[320287618,1711239043049,-263.13957168,0.00024657,2]
[320287620,1711239043058,-12410.47,0.00024657,2]
[320287622,1711239043068,-500.0,0.00024657,2]
[320287624,1711239043077,-500.0,0.00024657,2]
[320287628,1711239043086,-500.0,0.00024657,2]
[320287632,1711239043095,-1369.36,0.00024657,2]
[320287636,1711239043105,-500.0,0.00024657,2]
[320287639,1711239043114,-5247.89,0.00024657,2]
[320287641,1711239043124,-1262.39,0.00024657,2]
[320287644,1711239043132,-500.0,0.00024657,2]
[320287647,1711239043141,-500.0,0.00024657,2]
[320287651,1711239043152,-500.0,0.00024657,2]
[320287654,1711239043161,-500.0,0.00024657,2]
[320287656,1711239043170,-501.37843687,0.00024657,2]
[320287658,1711239043179,-13530.52,0.00024657,2]
[320287660,1711239043188,-501.39825358,0.00024657,2]
[320287662,1711239043197,-1120.88,0.00024657,2]
[320287664,1711239043205,-277.5212831,0.00024657,2]
[320287666,1711239043215,-500.0,0.00024657,2]
[320287668,1711239043224,-500.0,0.00024657,2]
[320287669,1711239043234,-500.0,0.00024657,2]
[320287671,1711239043244,-1325.13,0.00024657,2]
[320287673,1711239043253,-821.03,0.00024657,2]
[320287675,1711239043262,-500.0,0.00024657,2]
[320287676,1711239043271,-500.0,0.00024657,2]
[320287678,1711239043280,-500.0,0.00024657,2]
[320287680,1711239043290,-500.0,0.00024657,2]
[320287681,1711239043299,-500.0,0.00024657,2]
[320287682,1711239043308,-500.0,0.00024657,2]
[320287683,1711239043317,-500.0,0.00024657,2]
[320287684,1711239043325,-500.0,0.00024657,2]
[320287685,1711239043334,-500.0,0.00024657,2]
[320287686,1711239043343,-13695.69,0.00024657,2]
[320287687,1711239043352,-243.861521,0.00024657,2]
[320287688,1711239043361,-243.861521,0.00024657,2]
[320287689,1711239043370,-243.861521,0.00024657,2]
[320287690,1711239043379,-243.861521,0.00024657,2]
[320287691,1711239043388,-243.861521,0.00024657,2]
[320287692,1711239043397,-243.861521,0.00024657,2]
[320287693,1711239043406,-243.861521,0.00024657,2]
[320287694,1711239043415,-243.861521,0.00024657,2]
[320287695,1711239043424,-243.861521,0.00024657,2]
[320287696,1711239043433,-243.861521,0.00024657,2]
[320287697,1711239043442,-243.861521,0.00024657,2]
[320287698,1711239043451,-243.861521,0.00024657,2]
[320287699,1711239043461,-243.861521,0.00024657,2]
[320287700,1711239043470,-243.861521,0.00024657,2]
[320287701,1711239043479,-500.0,0.00024657,2]
[320287702,1711239043488,-2661.62,0.00024657,2]
[320287703,1711239043497,-416.17591994,0.00024657,2]
[320287704,1711239043509,-83.82408006,0.00024657,2]
[320287705,1711239043518,-9639.72,0.00024657,2]
[320287706,1711239043527,-500.0,0.00024657,2]
[320287707,1711239043537,-500.0,0.00024657,2]
[320287708,1711239043548,-151.0,0.00024657,2]
[320287709,1711239043559,-151.0,0.00024657,2]
[320287710,1711239043568,-151.0,0.00024657,2]
[320287711,1711239043577,-151.0,0.00024657,2]
[320287712,1711239043586,-500.0,0.00024657,2]
[320287713,1711239043595,-151.0,0.00024657,2]
[320287714,1711239043604,-151.0,0.00024657,2]
[320287715,1711239043613,-500.0,0.00024657,2]
[320287716,1711239043622,-189.515692,0.00024657,2]
[320287717,1711239043631,-189.515692,0.00024657,2]
[320287718,1711239043640,-189.515692,0.00024657,2]
[320287719,1711239043649,-189.515692,0.00024657,2]
[320287720,1711239043658,-189.515692,0.00024657,2]
[320287721,1711239043668,-189.515692,0.00024657,2]
[320287722,1711239043678,-189.515692,0.00024657,2]
[320287723,1711239043687,-189.515692,0.00024657,2]
[320287724,1711239043696,-189.515692,0.00024657,2]
[320287725,1711239043706,-189.515692,0.00024657,2]
[320287726,1711239043715,-189.515692,0.00024657,2]
[320287727,1711239043724,-189.515692,0.00024657,2]
[320287728,1711239043733,-189.515692,0.00024657,2]
[320287729,1711239043744,-189.515692,0.00024657,2]
[320287730,1711239043753,-849.77,0.00024657,2]
[320287731,1711239043763,-189.515692,0.00024657,2]
[320287732,1711239043772,-189.515692,0.00024657,2]
[320287733,1711239043781,-2826.03,0.00024657,2]
[320287734,1711239043794,-500.0,0.00024657,2]
[320287735,1711239043803,-1370.35,0.00024657,2]
[320287736,1711239043813,-500.0,0.00024657,2]
[320287737,1711239043824,-575.87,0.00024657,2]
[320287738,1711239043833,-2589.23,0.00024657,2]
[320287739,1711239043842,-916.64,0.00024657,2]
[320287740,1711239043851,-3762.23,0.00024657,2]
[320287741,1711239043862,-3407.42,0.00024657,2]
[320287742,1711239043871,-500.0,0.00024657,2]
[320287743,1711239043880,-500.0,0.00024657,2]
[320287744,1711239043889,-1151.65,0.00024657,2]
[320287745,1711239043898,-500.0,0.00024657,2]
[320287746,1711239043907,-500.0,0.00024657,2]
[320287747,1711239043917,-500.0,0.00024657,2]
[320287748,1711239043926,-836.16,0.00024657,2]
[320287749,1711239043935,-607.80368097,0.00024657,2]
[320287750,1711239043944,-1032.67,0.00024657,2]
[320287751,1711239043953,-166.666666,0.00024658,2]
[320287752,1711239043963,-1096.200766,0.000247,2]
[320287753,1711239043973,-691.820856,0.0002476,2]
[320287754,1711239043983,-260.27194,0.0002476,2]
[320287755,1711239043992,-173.514628,0.0002476,2]
[320287756,1711239044001,-172.955214,0.0002476,2]
[320287757,1711239044011,-173.514627,0.0002476,2]
[320287758,1711239044020,-345.910428,0.0002476,2]
[320287759,1711239044029,-500.0,0.00024785,2]
[320287760,1711239044039,-2000.0,0.000248,30]
[320287761,1711239044048,-800.0,0.000248,2]
[320287762,1711239044057,-800.0,0.000248,2]
[320287763,1711239044066,-151.0,0.000248,2]
[320287764,1711239044075,-243.861521,0.000248,2]
[320287765,1711239044084,-243.861521,0.000248,2]
[320287766,1711239044093,-2000.0,0.0002481,30]
[320287767,1711239044103,-2000.0,0.0002482,30]
[320287768,1711239044112,-2000.0,0.0002483,30]
[320287769,1711239044121,-1500.0,0.00024831,2]
[320287770,1711239044130,-300.0,0.00024831,2]
[320287771,1711239044139,-2000.0,0.0002484,30]
[320287772,1711239044148,-189.515692,0.0002484,2]
[320287773,1711239044158,-189.515692,0.0002484,2]
[320287774,1711239044168,-154.95979473,0.00024846,2]
[320287775,1711239044177,-151.81010872,0.00024846,2]
[320287776,1711239044186,-151.8101087,0.00024846,2]
[320287777,1711239044195,-2000.0,0.0002485,30]
[320287778,1711239044204,-2000.0,0.0002486,30]
[320287779,1711239044214,-2000.0,0.0002487,30]
[320287780,1711239044223,-16818.5495459,0.0002488,2]
[320287781,1711239044236,-42223.19372889,0.0002488,2]
[320287782,1711239044248,-63980.22200558,0.0002488,2]
[320287783,1711239044259,-4680.50000001,0.0002488,2]
[320287784,1711239044271,-13049.99999999,0.0002488,2]
[320287787,1711239044389,-96505.20188526,0.0002488,2]
[320287788,1711239044401,-487514.17080869,0.0002488,2]
[320287798,1711239046640,-920.51707482,0.00024656,2]
[320287799,1711239046649,-360.80097664,0.00024657,2]
[320287800,1711239046692,-142.10893674,0.00024657,2]
[320287803,1711239046701,-4818.06555745,0.0002488,2]
[320287805,1711239046711,-2000.0,0.0002488,30]
[320287806,1711239046720,-151.0,0.0002488,2]
[320287807,1711239046730,-243.861521,0.0002488,2]
[320287808,1711239046741,-243.861521,0.0002488,2]
[320287809,1711239046751,-2000.0,0.0002489,30]
[320287811,1711239046864,-2000.0,0.000249,30]
[320287812,1711239046874,-160.0,0.00024902,3]
[320287813,1711239046883,-2000.0,0.0002491,30]
[320287814,1711239046893,-170.15193955,0.00024916,2]
[320287815,1711239046902,-422.01077694,0.00024919,2]
[320287816,1711239046913,-2000.0,0.0002492,30]
[320287817,1711239046922,-500.0,0.00024922,2]
[320287818,1711239046932,-12071.73671592,0.00024926,2]
[320287819,1711239046941,-151.0,0.00024926,2]
[320287820,1711239046950,-243.861521,0.00024926,2]
[320287821,1711239046960,-243.861516,0.00024926,2]
[320287822,1711239046969,-189.515692,0.00024926,2]
[320287823,1711239046979,-189.515689,0.00024926,2]
[320287824,1711239046989,-309.81412391,0.00024927,2]
[320287825,1711239046998,-309.8295945,0.00024927,2]
[320287826,1711239047007,-160.0,0.0002493,2]
[320287827,1711239047018,-2000.0,0.0002493,30]
[320287828,1711239047028,-419.74075674,0.00024931,2]
[320287829,1711239047037,-500.0,0.00024931,2]
[320287830,1711239047048,-500.0,0.00024931,2]
[320287831,1711239047057,-505.0819761,0.00024931,2]
[320287832,1711239047067,-500.0,0.00024931,2]
[320287833,1711239047076,-500.0,0.00024931,2]
[320287834,1711239047086,-500.0,0.00024931,2]
[320287835,1711239047095,-500.0,0.00024931,2]
[320287836,1711239047103,-500.0,0.00024931,2]
[320287837,1711239047113,-500.0,0.00024931,2]
[320287838,1711239047122,-500.0,0.00024931,2]
[320287839,1711239047132,-500.0,0.00024931,2]
[320287840,1711239047141,-500.0,0.00024931,2]
[320287841,1711239047150,-500.0,0.00024931,2]
[320287842,1711239047159,-500.0,0.00024931,2]
[320287843,1711239047168,-500.0,0.00024931,2]
[320287844,1711239047177,-500.0,0.00024931,2]
[320287845,1711239047187,-500.0,0.00024931,2]
[320287846,1711239047197,-500.0,0.00024931,2]
[320287847,1711239047206,-500.0,0.00024931,2]
[320287848,1711239047216,-500.0,0.00024931,2]
[320287849,1711239047225,-500.0,0.00024931,2]
[320287850,1711239047234,-500.0,0.00024931,2]
[320287851,1711239047243,-731.57,0.00024931,2]
[320287852,1711239047252,-500.0,0.00024931,2]
[320287853,1711239047261,-1033.41,0.00024931,2]
[320287854,1711239047270,-500.0,0.00024931,2]
[320287855,1711239047279,-500.0,0.00024931,2]
[320287856,1711239047288,-1221.42,0.00024931,2]
[320287857,1711239047298,-168.23271702,0.00024931,2]
[320287858,1711239047307,-500.0,0.00024931,2]
[320287859,1711239047316,-500.0,0.00024931,2]
[320287860,1711239047325,-500.0,0.00024931,2]
[320287861,1711239047334,-500.0,0.00024931,2]
[320287862,1711239047343,-1222.12,0.00024931,2]
[320287863,1711239047353,-500.0,0.00024931,2]
[320287864,1711239047362,-458.41651882,0.00024931,2]
[320287865,1711239047372,-500.0,0.00024931,2]
[320287866,1711239047381,-1322.34,0.00024931,2]
[320287867,1711239047390,-240.0,0.00024931,2]
[320287868,1711239047399,-500.0,0.00024931,2]
[320287869,1711239047408,-500.0,0.00024931,2]
[320287870,1711239047417,-1090.33,0.00024931,2]
[320287871,1711239047426,-500.0,0.00024931,2]
[320287872,1711239047435,-500.0,0.00024931,2]
[320287873,1711239047445,-822.7,0.00024931,2]
[320287874,1711239047454,-500.0,0.00024931,2]
[320287875,1711239047463,-500.0,0.00024931,2]
[320287876,1711239047472,-500.0,0.00024931,2]
[320287877,1711239047481,-500.0,0.00024931,2]
[320287878,1711239047490,-500.0,0.00024931,2]
[320287879,1711239047499,-500.0,0.00024931,2]
[320287880,1711239047508,-1647.78,0.00024931,2]
[320287881,1711239047517,-500.0,0.00024931,2]
[320287882,1711239047526,-500.0,0.00024931,2]
[320287883,1711239047534,-890.77,0.00024931,2]
[320287884,1711239047544,-500.0,0.00024931,2]
[320287885,1711239047553,-517.07,0.00024931,2]
[320287886,1711239047562,-500.0,0.00024931,2]
[320287887,1711239047571,-500.0,0.00024931,2]
[320287888,1711239047581,-500.0,0.00024931,2]
[320287889,1711239047589,-500.0,0.00024931,2]
[320287890,1711239047598,-12410.47,0.00024931,2]
[320287891,1711239047607,-500.0,0.00024931,2]
[320287892,1711239047616,-500.0,0.00024931,2]
[320287893,1711239047625,-1369.36,0.00024931,2]
[320287894,1711239047634,-500.0,0.00024931,2]
[320287895,1711239047643,-5247.89,0.00024931,2]
[320287896,1711239047652,-1262.39,0.00024931,2]
[320287897,1711239047660,-500.0,0.00024931,2]
[320287898,1711239047670,-500.0,0.00024931,2]
[320287899,1711239047679,-500.0,0.00024931,2]
[320287900,1711239047688,-347.51470311,0.00024931,2]
[320287901,1711239047698,-13530.52,0.00024931,2]
[320287902,1711239047706,-1120.88,0.00024931,2]
[320287903,1711239047715,-240.82529452,0.00024931,2]
[320287904,1711239047725,-500.0,0.00024931,2]
[320287905,1711239047735,-500.0,0.00024931,2]
[320287906,1711239047745,-1325.13,0.00024931,2]
[320287907,1711239047756,-821.03,0.00024931,2]
[320287908,1711239047765,-500.0,0.00024931,2]
[320287909,1711239047775,-500.0,0.00024931,2]
[320287910,1711239047784,-500.0,0.00024931,2]
[320287911,1711239047795,-13695.69,0.00024931,2]
[320287912,1711239047805,-500.0,0.00024931,2]
[320287913,1711239047814,-2661.62,0.00024931,2]
[320287914,1711239047826,-637.93,0.00024931,2]
[320287915,1711239047835,-9639.72,0.00024931,2]
[320287916,1711239047844,-500.0,0.00024931,2]
[320287917,1711239047853,-500.0,0.00024931,2]
[320287918,1711239047862,-500.0,0.00024931,2]
[320287919,1711239047871,-507.13374388,0.00024931,2]
[320287920,1711239047880,-849.77,0.00024931,2]
[320287921,1711239047889,-2826.03,0.00024931,2]
[320287922,1711239047898,-500.0,0.00024931,2]
[320287923,1711239047908,-1370.35,0.00024931,2]
[320287924,1711239047917,-500.0,0.00024931,2]
[320287925,1711239047926,-575.87,0.00024931,2]
[320287926,1711239047935,-2589.23,0.00024931,2]
[320287927,1711239047945,-916.64,0.00024931,2]
[320287928,1711239047954,-3762.23,0.00024931,2]
[320287929,1711239047963,-3407.42,0.00024931,2]
[320287930,1711239047972,-500.0,0.00024931,2]
[320287931,1711239047982,-500.0,0.00024931,2]
[320287932,1711239047991,-1151.65,0.00024931,2]
[320287933,1711239048000,-500.0,0.00024931,2]
[320287934,1711239048011,-500.0,0.00024931,2]
[320287935,1711239048021,-500.0,0.00024931,2]
[320287936,1711239048030,-836.16,0.00024931,2]
[320287937,1711239048040,-1032.67,0.00024931,2]
[320287938,1711239048051,-2490.679363,0.0002494,30]
[320287939,1711239048061,-154.9690062,0.00025,2]
[320287940,1711239048071,-445.17663451,0.00025,2]
[320287941,1711239048081,-484.0,0.00025,2]
[320287942,1711239048091,-155.08043677,0.00025,2]
[320287943,1711239048102,-289.17972972,0.00025,2]
[320287944,1711239048112,-325.57710366,0.00025064,2]
[320287945,1711239048122,-2417.38616745,0.00025105,2]
[320287946,1711239048132,-400.0,0.000252,2]
[320287947,1711239048141,-800.0,0.000252,2]
[320287948,1711239048150,-1608.0,0.000252,2]
[320287949,1711239048159,-400.0,0.000252,2]
[320287950,1711239048169,-36963.91024847,0.00025204,2]
[320287951,1711239048178,-997.0,0.00025204,2]
[320287952,1711239048187,-997.0,0.00025204,2]
[320287953,1711239048196,-303.0,0.00025204,2]
[320287954,1711239048206,-300.0,0.00025204,2]
[320287955,1711239048215,-301.0,0.00025204,2]
[320287956,1711239048224,-500.0,0.00025205,2]
[320287957,1711239048234,-500.0,0.00025205,2]
[320287958,1711239048242,-500.0,0.00025205,2]
[320287959,1711239048251,-588.40420494,0.00025205,2]
[320287960,1711239048260,-500.0,0.00025205,2]